bitfinex/quotes_BTCUSD_20240731
["timestamp","ask_amount","ask_price","bid_price","bid_amount"]
[1722410982609,1.70915184,66515.0,66514.0,0.070706]
[1722410983863,1.49082136,66515.0,66514.0,0.070706]
[1722410984061,1.72336598,66515.0,66514.0,0.070706]
[1722410984702,1.72672726,66515.0,66514.0,0.009306]
[1722410984918,1.73312726,66515.0,66514.0,0.009306]
[1722410985495,1.73912726,66515.0,66514.0,0.009306]
[1722410986041,1.75312726,66515.0,66514.0,0.009306]
[1722410986246,1.72512726,66515.0,66514.0,0.009306]
[1722410986662,1.70512726,66515.0,66514.0,0.009306]
[1722410986945,1.71912726,66515.0,66514.0,0.009306]
[1722410987147,1.48658264,66515.0,66514.0,0.009306]
[1722410987355,1.71893863,66515.0,66514.0,0.009306]
[1722410987951,1.73293863,66515.0,66514.0,0.009306]
[1722410988177,1.71893863,66515.0,66514.0,0.009306]
[1722410988376,1.70493863,66515.0,66514.0,0.009306]
[1722410988557,1.58224431,66515.0,66514.0,0.009306]
[1722410989805,1.60224431,66515.0,66514.0,0.009306]
[1722410990523,1.36988832,66515.0,66514.0,0.009306]
[1722410990726,1.60072367,66515.0,66514.0,0.009306]
[1722410990933,2.05210199,66515.0,66514.0,0.009306]
[1722410991138,2.15390199,66515.0,66514.0,0.009306]
[1722410991314,2.25390199,66515.0,66514.0,0.009306]
[1722410991651,2.26790199,66515.0,66514.0,0.009306]
[1722410991849,2.25390199,66515.0,66514.0,0.009306]
[1722410992100,1.95321799,66515.0,66514.0,0.009306]
[1722410992715,2.25390199,66515.0,66514.0,0.009306]
[1722410993756,2.02306664,66515.0,66514.0,0.009306]
[1722410993959,2.25246537,66515.0,66514.0,0.009306]
[1722410994185,2.23846537,66515.0,66514.0,0.009306]
[1722410994359,2.25246537,66515.0,66514.0,0.009306]
[1722410994532,2.26646537,66515.0,66514.0,0.009306]
[1722410997087,2.26664609,66515.0,66514.0,0.009306]
[1722410998946,2.25264609,66515.0,66514.0,0.009306]
[1722410999166,2.26664609,66515.0,66514.0,0.009306]
[1722411000269,2.26668296,66515.0,66514.0,0.009306]
[1722411001082,2.23868296,66515.0,66514.0,0.009306]
[1722411001414,2.26668296,66515.0,66514.0,0.00261908]
[1722411001628,2.25268296,66515.0,66514.0,0.00261908]
[1722411001831,2.23868296,66515.0,66514.0,0.00261908]
[1722411002030,2.95610925,66515.0,66514.0,8e-08]
[1722411002235,2.95610925,66515.0,66511.0,0.0005]
[1722411002236,1.24060028,66512.0,66511.0,0.0005]
[1722411002447,2.59213796,66512.0,66511.0,0.0005]
[1722411003041,2.69213796,66512.0,66511.0,1e-06]
[1722411003461,2.87762375,66512.0,66511.0,1e-06]
[1722411003845,2.79152375,66512.0,66511.0,1e-06]
[1722411004080,2.87762375,66512.0,66511.0,1e-06]
[1722411004491,2.79152375,66512.0,66511.0,1e-06]
[1722411004760,2.89162375,66512.0,66511.0,1e-06]
[1722411005266,1.97008258,66512.0,66511.0,0.061901]
[1722411005467,1.96408258,66512.0,66511.0,0.061901]
[1722411005644,1.98408258,66512.0,66511.0,0.061901]
[1722411005848,1.87798258,66512.0,66511.0,0.061901]
[1722411006052,1.97808258,66512.0,66511.0,0.061901]
[1722411006247,2.1287769,66512.0,66511.0,0.061901]
[1722411006454,1.90732464,66512.0,66511.0,0.061901]
[1722411006609,2.13783429,66512.0,66511.0,0.061901]
[1722411006826,2.11783429,66512.0,66511.0,0.061901]
[1722411007326,2.13183429,66512.0,66511.0,0.061901]
[1722411007801,2.15183429,66512.0,66511.0,0.061901]
[1722411008415,2.15183429,66512.0,66511.0,1e-06]
[1722411009747,2.00079446,66512.0,66511.0,1e-06]
[1722411010290,2.24452107,66512.0,66511.0,1e-06]
[1722411011208,2.00079446,66512.0,66511.0,1e-06]
[1722411011375,2.39919146,66512.0,66511.0,1e-06]
[1722411011580,2.38519146,66512.0,66511.0,1e-06]
[1722411011775,1.08232628,66504.0,66503.0,0.009306]
[1722411012025,1.67222346,66504.0,66503.0,0.009306]
[1722411012233,1.97295646,66504.0,66503.0,0.009306]
[1722411012586,1.95295646,66504.0,66503.0,0.009306]
[1722411012987,1.72279232,66504.0,66503.0,0.009306]
[1722411013235,2.12451243,66504.0,66503.0,0.009306]
[1722411013550,2.16479943,66504.0,66503.0,0.009306]
[1722411014092,2.17879943,66504.0,66503.0,0.009306]
[1722411014650,2.19879943,66504.0,66503.0,0.009306]
[1722411014884,2.21279943,66504.0,66503.0,0.009306]
[1722411015324,1.94777364,66504.0,66503.0,0.009306]
[1722411015522,1.94777364,66504.0,66503.0,0.075306]
[1722411015523,1.72701252,66504.0,66503.0,0.075306]
[1722411015795,1.74101252,66504.0,66503.0,0.158306]
[1722411016529,1.71366001,66504.0,66503.0,0.158306]
[1722411016949,1.87835433,66504.0,66503.0,0.158306]
[1722411017147,1.72766001,66504.0,66503.0,0.158306]
[1722411017754,1.74766001,66504.0,66503.0,0.158306]
[1722411018025,1.76166001,66504.0,66503.0,0.158306]
[1722411018140,1.76166001,66504.0,66493.0,0.0617]
[1722411018141,1.08242128,66498.0,66493.0,0.0617]
[1722411018341,1.08242128,66498.0,66491.0,0.0767]
[1722411018342,2.10887517,66498.0,66491.0,0.0005]
[1722411018552,1.08251928,66492.0,66491.0,0.0005]
[1722411018764,1.85135401,66492.0,66491.0,0.0005]
[1722411018966,2.25214201,66492.0,66491.0,0.0005]
[1722411019167,2.42583633,66492.0,66491.0,0.0005]
[1722411019583,2.42611234,66492.0,66491.0,0.0005]
[1722411021222,2.58361234,66492.0,66491.0,0.0005]
[1722411021495,2.36801234,66492.0,66491.0,0.0005]
[1722411021678,2.52673186,66492.0,66491.0,0.0005]
[1722411021881,2.28282434,66492.0,66491.0,0.0005]
[1722411022020,2.27306306,66492.0,66491.0,0.0005]
[1722411022233,2.28282434,66492.0,66491.0,0.0005]
[1722411022905,1.90054032,66492.0,66491.0,0.0005]
[1722411023121,2.08955524,66492.0,66491.0,0.066]
[1722411023325,1.26261796,66492.0,66491.0,0.066]
[1722411023747,1.56340596,66492.0,66491.0,0.066]
[1722411023994,1.95946156,66492.0,66491.0,0.066]
[1722411024229,1.94546156,66492.0,66491.0,0.066]
[1722411024939,1.98246156,66492.0,66491.0,0.066]
[1722411025091,1.96846156,66492.0,66491.0,0.066]
[1722411025294,1.98246156,66492.0,66491.0,0.066]
[1722411025508,1.97646156,66492.0,66491.0,0.066]
[1722411025675,1.96246156,66492.0,66491.0,0.066]
[1722411026119,1.97659007,66492.0,66491.0,0.066]
[1722411026726,1.99659007,66492.0,66491.0,0.066]
[1722411026998,2.26937807,66492.0,66491.0,0.0005]
[1722411027198,2.28337807,66492.0,66491.0,0.0005]
[1722411027403,2.26937807,66492.0,66491.0,0.0005]
[1722411027830,2.28337807,66492.0,66491.0,0.0005]
[1722411028236,2.26937807,66492.0,66491.0,0.0005]
[1722411028398,2.25537807,66492.0,66491.0,0.0005]
[1722411028598,2.26937807,66492.0,66491.0,0.0005]
[1722411028853,2.28337807,66492.0,66491.0,0.0005]
[1722411029059,2.26937807,66492.0,66491.0,0.0005]
[1722411029265,2.03723464,66492.0,66491.0,0.0005]
[1722411029468,2.28285791,66492.0,66491.0,0.0005]
[1722411030279,2.26885791,66492.0,66491.0,0.0005]
[1722411030655,2.25485791,66492.0,66491.0,0.0005]
[1722411030861,2.26885791,66492.0,66491.0,0.0005]
[1722411031069,2.28285791,66492.0,66491.0,0.0005]
[1722411031427,2.26885791,66492.0,66491.0,0.0005]
[1722411031824,2.28285791,66492.0,66491.0,0.0005]
[1722411032650,2.28245286,66492.0,66491.0,0.0005]
[1722411035902,2.28245286,66492.0,66491.0,1e-06]
[1722411035903,2.55617704,66492.0,66491.0,1e-06]
[1722411036107,2.55617704,66492.0,66483.0,0.009306]
[1722411036108,1.38346928,66484.0,66483.0,0.009306]
[1722411036304,2.24139165,66484.0,66483.0,0.009306]
[1722411036504,2.54221565,66484.0,66483.0,0.009306]
[1722411037395,2.64881565,66484.0,66483.0,0.009306]
[1722411037791,2.66931565,66484.0,66483.0,0.009306]
[1722411038121,2.82791565,66484.0,66483.0,0.009306]
[1722411038378,2.84309672,66484.0,66483.0,1e-06]
[1722411038577,3.31900909,66484.0,66483.0,1e-06]
[1722411038784,1.38359028,66478.0,66477.0,0.009306]
[1722411038983,2.52055682,66478.0,66477.0,0.009306]
[1722411039182,2.28903335,66478.0,66477.0,0.009306]
[1722411039408,3.14756992,66478.0,66477.0,1e-06]
[1722411040099,1.38371228,66472.0,66465.0,0.0656]
[1722411040297,2.11588189,66472.0,66461.0,0.0656]
[1722411040560,2.56745421,66472.0,66461.0,0.0656]
[1722411041511,2.59045421,66472.0,66461.0,0.0656]
[1722411041740,2.60445421,66472.0,66461.0,0.0656]
[1722411041935,2.59045421,66472.0,66461.0,0.0656]
[1722411042137,2.60445421,66472.0,66461.0,0.0656]
[1722411042340,2.61845421,66472.0,66461.0,0.0656]
[1722411042542,2.37301764,66472.0,66461.0,0.0656]
[1722411042801,2.30418493,66472.0,66461.0,0.0656]
[1722411042939,2.28368493,66472.0,66461.0,0.0656]
[1722411043348,2.24068493,66472.0,66471.0,0.071006]
[1722411043542,2.461986,66472.0,66471.0,0.148306]
[1722411043747,2.22668493,66472.0,66471.0,0.148306]
[1722411043952,2.24068493,66472.0,66471.0,0.148306]
[1722411044176,2.24668493,66472.0,66471.0,0.071006]
[1722411044380,2.23268493,66472.0,66471.0,0.071006]
[1722411044609,2.24668493,66472.0,66471.0,0.071006]
[1722411044794,2.28368493,66472.0,66471.0,0.071006]
[1722411045238,2.26968493,66472.0,66471.0,0.071006]
[1722411045430,2.28368493,66472.0,66471.0,0.071006]
[1722411045980,2.26194952,66472.0,66471.0,0.071006]
[1722411046138,2.27100609,66472.0,66471.0,0.071006]
[1722411047161,2.12031177,66472.0,66471.0,0.071006]
[1722411047773,2.13031177,66472.0,66471.0,0.071006]
[1722411047973,2.12031177,66472.0,66471.0,0.071006]
[1722411048350,0.86025992,66472.0,66471.0,0.148606]
[1722411048554,1.31282335,66472.0,66471.0,0.148606]
[1722411048752,1.16113792,66472.0,66471.0,0.148606]
[1722411048957,1.31282337,66472.0,66471.0,0.148606]
[1722411049129,1.31296578,66472.0,66471.0,0.148606]
[1722411049312,1.16128138,66472.0,66471.0,0.148606]
[1722411049517,1.31296578,66472.0,66471.0,0.148606]
[1722411049726,1.43596578,66472.0,66471.0,0.148606]
[1722411049943,1.42196578,66472.0,66471.0,0.148606]
[1722411050157,1.5726601,66472.0,66471.0,0.148606]
[1722411050531,1.5586601,66472.0,66471.0,0.148606]
[1722411050996,1.4349757,66472.0,66471.0,0.148606]
[1722411051403,1.4209757,66472.0,66471.0,0.148606]
[1722411051608,1.5726601,66472.0,66471.0,0.148606]
[1722411051807,1.5866601,66472.0,66471.0,0.148606]
[1722411052215,1.5866601,66472.0,66471.0,0.147606]
[1722411052417,1.20452236,66472.0,66471.0,0.147606]
[1722411052594,1.43537381,66472.0,66471.0,0.147606]
[1722411055214,1.73625181,66472.0,66471.0,0.147606]
[1722411055875,1.73656514,66472.0,66471.0,0.147606]
[1722411057161,1.72256514,66472.0,66471.0,0.147606]
[1722411057331,1.70856514,66472.0,66471.0,0.147606]
[1722411057557,1.72256514,66472.0,66471.0,0.147606]
[1722411057732,1.73656514,66472.0,66471.0,0.147606]
[1722411058163,1.72256514,66472.0,66471.0,0.147606]
[1722411058366,1.70856514,66472.0,66471.0,0.147606]
[1722411058525,1.42168714,66472.0,66471.0,0.147606]
[1722411058724,0.56923682,66472.0,66471.0,0.147606]
[1722411058939,0.87011482,66472.0,66471.0,0.147606]
[1722411059145,0.85508966,66472.0,66471.0,0.147606]
[1722411059566,1.15596766,66472.0,66471.0,0.147606]
[1722411060366,0.41777266,66472.0,66471.0,0.147606]
[1722411060573,0.55421166,66472.0,66471.0,0.147606]
[1722411061088,0.58221166,66472.0,66471.0,0.147606]
[1722411061405,0.86908966,66472.0,66471.0,0.147606]
[1722411061607,0.41777266,66472.0,66471.0,0.147606]
[1722411061818,0.43177266,66472.0,66471.0,0.147606]
[1722411062282,0.58221166,66472.0,66471.0,0.147606]
[1722411062484,0.58271771,66472.0,66471.0,0.147606]
[1722411062994,0.43227871,66472.0,66471.0,0.147606]
[1722411063604,0.43227871,66472.0,66471.0,0.14784472]
[1722411064455,0.43227871,66472.0,66471.0,0.29828572]
[1722411064673,0.43227871,66472.0,66471.0,0.14784472]
[1722411064835,0.55636255,66472.0,66471.0,0.14784472]
[1722411065028,0.57036255,66472.0,66471.0,0.14784472]
[1722411065231,0.58436255,66472.0,66471.0,0.14784472]
[1722411065434,0.58436255,66472.0,66471.0,0.14937407]
[1722411065645,0.58443618,66472.0,66471.0,0.14937407]
[1722411066063,0.58443618,66472.0,66471.0,0.14784472]
[1722411066293,0.43235393,66472.0,66471.0,0.14784472]
[1722411067077,0.52825314,66472.0,66471.0,0.14784472]
[1722411067230,0.88367093,66472.0,66471.0,0.147606]
[1722411067634,1.18454893,66472.0,66471.0,0.147606]
[1722411067858,0.88367093,66472.0,66471.0,0.147606]
[1722411068864,0.65295004,66472.0,66471.0,0.147606]
[1722411069076,1.18344707,66472.0,66471.0,0.147606]
[1722411069933,1.32014139,66472.0,66471.0,0.147606]
[1722411070107,1.60701939,66472.0,66471.0,0.147606]
[1722411070309,1.62101939,66472.0,66471.0,0.147606]
[1722411071067,1.60701939,66472.0,66471.0,0.147606]
[1722411071280,1.62101939,66472.0,66471.0,0.147606]
[1722411071503,1.63501939,66472.0,66471.0,0.147606]
[1722411071684,1.62101939,66472.0,66471.0,0.147606]
[1722411072109,1.39140036,66472.0,66471.0,0.147606]
[1722411072310,1.5222481,66472.0,66471.0,0.147606]
[1722411072513,1.62087873,66472.0,66471.0,0.147606]
[1722411072751,1.65064001,66472.0,66471.0,0.008806]
[1722411072914,1.75064001,66472.0,66471.0,0.008806]
[1722411073065,2.05151801,66472.0,66471.0,0.008806]
[1722411073689,2.16400568,66472.0,66471.0,0.008806]
[1722411073884,2.17800568,66472.0,66471.0,0.008806]
[1722411074170,2.15000568,66472.0,66471.0,0.008806]
[1722411074360,2.16400568,66472.0,66471.0,0.008806]
[1722411074536,2.17800568,66472.0,66471.0,0.008806]
[1722411074927,2.14350568,66472.0,66471.0,0.008806]
[1722411075312,2.18382268,66472.0,66471.0,0.008806]
[1722411075531,1.97405664,66472.0,66471.0,0.008806]
[1722411075870,2.2033662,66472.0,66471.0,0.008806]
[1722411076503,2.1056662,66472.0,66471.0,0.008806]
[1722411077077,2.1256662,66472.0,66471.0,0.008806]
[1722411077409,2.1056662,66472.0,66471.0,0.008806]
[1722411077968,4.1256662,66472.0,66471.0,0.008806]
[1722411078166,4.1056662,66472.0,66471.0,0.008806]
[1722411078409,4.22131658,66472.0,66471.0,0.008806]
[1722411078583,4.20131658,66472.0,66471.0,0.008806]
[1722411078985,4.20266823,66472.0,66471.0,0.008806]
[1722411079187,4.20262178,66472.0,66471.0,0.008806]
[1722411079736,4.22262178,66472.0,66471.0,0.008806]
[1722411079971,4.20262178,66472.0,66471.0,0.008806]
[1722411080339,4.1069714,66472.0,66471.0,0.008806]
[1722411080900,4.1269714,66472.0,66471.0,0.008806]
[1722411081106,4.2382068,66472.0,66471.0,0.008806]
[1722411082132,4.00759204,66472.0,66471.0,0.008806]
[1722411082322,4.23826685,66472.0,66471.0,0.008806]
[1722411082602,4.22426685,66472.0,66471.0,0.008806]
[1722411083204,4.23826685,66472.0,66471.0,0.008806]
[1722411083404,4.21026685,66472.0,66471.0,0.008806]
[1722411083615,4.22426685,66472.0,66471.0,0.008806]
[1722411084449,4.23826685,66472.0,66471.0,0.008806]
[1722411085277,4.23826685,66472.0,66471.0,0.007806]
[1722411085692,4.23839153,66472.0,66471.0,0.007806]
[1722411087475,4.48203579,66472.0,66471.0,0.007806]
[1722411088978,4.48157795,66472.0,66471.0,0.007806]
[1722411089195,4.56787795,66472.0,66471.0,0.007806]
[1722411091851,4.32423369,66472.0,66471.0,0.007806]
[1722411092225,4.39477004,66472.0,66471.0,0.007806]
[1722411092428,4.62385279,66472.0,66471.0,0.007806]
[1722411092641,4.65835279,66472.0,66471.0,0.007806]
[1722411092839,4.73915279,66472.0,66471.0,0.007806]
[1722411093252,1.68476628,66465.0,66464.0,0.009306]
[1722411093466,1.68476628,66465.0,66462.0,1e-06]
[1722411093467,0.56743928,66463.0,66462.0,1e-06]
[1722411093668,0.56743928,66463.0,66451.0,0.0005]
[1722411093669,1.08308928,66456.0,66451.0,0.0005]
[1722411093878,2.40695423,66456.0,66451.0,0.0005]
[1722411094083,2.42995423,66456.0,66451.0,0.0005]
[1722411094292,2.16350323,66456.0,66451.0,0.0005]
[1722411094502,2.12900323,66456.0,66451.0,0.0005]
[1722411094703,2.19735857,66456.0,66451.0,0.0005]
[1722411094914,2.17735857,66456.0,66451.0,0.0005]
[1722411095125,2.19135857,66456.0,66451.0,0.0005]
[1722411095342,2.3560491,66456.0,66451.0,0.0005]
[1722411095496,2.58615397,66456.0,66451.0,0.0005]
[1722411095703,2.34188069,66456.0,66451.0,0.0005]
[1722411095909,2.35588069,66456.0,66451.0,0.0005]
[1722411096109,2.35178069,66456.0,66451.0,0.0005]
[1722411096704,2.33178069,66456.0,66451.0,0.0005]
[1722411097599,2.10198069,66456.0,66451.0,0.0005]
[1722411097806,2.08798069,66456.0,66455.0,0.154217]
[1722411098017,2.11598069,66456.0,66455.0,0.154217]
[1722411098420,1.64641307,66456.0,66455.0,0.154217]
[1722411098629,1.62341307,66456.0,66455.0,0.154217]
[1722411098832,1.63673801,66456.0,66455.0,0.154217]
[1722411099078,1.8585369,66456.0,66455.0,0.154217]
[1722411099483,1.8445369,66456.0,66455.0,0.154217]
[1722411099689,1.11755574,66456.0,66455.0,0.154217]
[1722411099894,0.60588501,66456.0,66455.0,0.154217]
[1722411100102,0.90683601,66456.0,66455.0,0.154217]
[1722411101118,1.00683601,66456.0,66455.0,0.154217]
[1722411101332,1.02083601,66456.0,66455.0,0.154217]
[1722411101479,1.03483601,66456.0,66455.0,0.154217]
[1722411101738,0.92983601,66456.0,66455.0,0.154217]
[1722411102097,0.50641001,66456.0,66455.0,0.154217]
[1722411102706,0.65845758,66456.0,66455.0,0.154217]
[1722411102912,0.79493258,66456.0,66455.0,0.154217]
[1722411103288,0.64288501,66456.0,66455.0,0.154217]
[1722411103927,0.62888501,66456.0,66455.0,0.154217]
[1722411104120,0.64288501,66456.0,66455.0,0.154217]
[1722411104321,0.65688501,66456.0,66455.0,0.154217]
[1722411104528,0.64288501,66456.0,66455.0,0.154217]
[1722411105107,0.65688501,66456.0,66455.0,0.154217]
[1722411105326,0.656155,66456.0,66455.0,0.154217]
[1722411105764,0.50568,66456.0,66455.0,0.154217]
[1722411105978,0.50568,66456.0,66455.0,0.15855572]
[1722411108693,0.50518519,66456.0,66455.0,0.15855572]
[1722411108918,0.40683764,66456.0,66455.0,0.30903272]
[1722411109285,0.40682874,66456.0,66455.0,0.15855572]
[1722411110165,0.42982874,66456.0,66455.0,0.15855572]
[1722411111390,0.5819127,66456.0,66455.0,0.15855572]
[1722411112052,0.58136872,66456.0,66455.0,0.15855572]
[1722411112401,0.42922282,66456.0,66455.0,0.15855572]
[1722411114117,0.57969782,66456.0,66455.0,0.15855572]
[1722411114402,0.57969782,66456.0,66455.0,0.154217]
[1722411114595,1.18159982,66456.0,66455.0,0.154217]
[1722411115228,0.95401004,66456.0,66455.0,0.154217]
[1722411115424,1.18199486,66456.0,66455.0,0.154217]
[1722411117232,1.16799486,66456.0,66455.0,0.154217]
[1722411117431,1.18199486,66456.0,66455.0,0.154217]
[1722411117634,1.16799486,66456.0,66455.0,0.154217]
[1722411117837,1.18199486,66456.0,66455.0,0.154217]
[1722411118042,1.48294586,66456.0,66455.0,0.154217]
[1722411118247,1.63364018,66456.0,66455.0,0.154217]
[1722411118858,1.62038083,66456.0,66455.0,0.154217]
[1722411119256,1.63438083,66456.0,66455.0,0.154217]
[1722411119676,1.62038083,66456.0,66455.0,0.154217]
[1722411119826,1.62038083,66456.0,66455.0,0.071817]
[1722411120027,1.63438083,66456.0,66455.0,0.071817]
[1722411120227,1.63438083,66456.0,66455.0,0.009317]
[1722411120432,1.62038083,66456.0,66455.0,0.009317]
[1722411120793,1.63438083,66456.0,66455.0,0.009317]
[1722411120994,1.62038083,66456.0,66455.0,0.009317]
[1722411121192,1.60638083,66456.0,66455.0,0.009317]
[1722411121406,1.63438083,66456.0,66455.0,0.009317]
[1722411121846,1.25496104,66456.0,66455.0,0.151217]
[1722411122048,1.48306928,66456.0,66455.0,0.151217]
[1722411123021,1.46906928,66456.0,66455.0,0.151217]
[1722411123220,1.48306928,66456.0,66455.0,0.151217]
[1722411123996,1.6337636,66456.0,66455.0,0.151217]
[1722411125235,1.63476179,66456.0,66455.0,0.151217]
[1722411127268,1.63476179,66456.0,66455.0,0.074517]
[1722411128519,1.6345689,66456.0,66455.0,0.074517]
[1722411128726,1.63496692,66456.0,66455.0,0.009317]
[1722411131690,1.40565536,66456.0,66455.0,0.009317]
[1722411131896,1.63487258,66456.0,66455.0,0.009317]
[1722411134033,1.6438814,66456.0,66455.0,0.009317]
[1722411134421,1.41466418,66456.0,66455.0,0.009317]
[1722411134638,1.64356364,66456.0,66455.0,0.009317]
[1722411135151,1.6435901,66456.0,66455.0,0.009317]
[1722411135932,1.64352389,66456.0,66455.0,0.009317]
[1722411137811,1.63451507,66456.0,66455.0,0.009317]
[1722411138586,1.63456782,66456.0,66455.0,0.009317]
[1722411141352,1.72086782,66456.0,66455.0,0.009317]
[1722411141911,1.72132272,66456.0,66455.0,0.009317]
[1722411142671,2.02227372,66456.0,66455.0,0.009317]
[1722411143245,2.02311372,66456.0,66455.0,0.009317]
[1722411143726,2.111275,66456.0,66455.0,0.009317]
[1722411143933,2.37554828,66456.0,66455.0,0.009317]
[1722411144139,2.46554828,66456.0,66455.0,0.009317]
[1722411144380,2.46554828,66456.0,66455.0,0.008317]
[1722411144381,2.45554828,66456.0,66455.0,0.008317]
[1722411145135,2.45569394,66456.0,66455.0,0.008317]
[1722411145339,2.45569394,66456.0,66455.0,0.007417]
[1722411145584,2.21683834,66456.0,66455.0,0.007417]
[1722411145789,2.22262321,66456.0,66455.0,0.006617]
[1722411145995,2.24262321,66456.0,66455.0,0.006617]
[1722411146192,2.22262321,66456.0,66455.0,0.006617]
[1722411146989,2.31922321,66456.0,66455.0,0.006617]
[1722411147192,2.77086853,66456.0,66455.0,0.006617]
[1722411147407,2.52647166,66456.0,66455.0,0.00186102]
[1722411148193,2.54697166,66456.0,66455.0,0.00186102]
[1722411148393,2.43317561,66456.0,66455.0,0.00186102]
[1722411148639,2.55860287,66456.0,66455.0,0.00186102]
[1722411148989,2.54460287,66456.0,66455.0,0.00186102]
[1722411149658,2.44430287,66456.0,66455.0,0.00186102]
[1722411149820,2.52460287,66456.0,66455.0,0.00186102]
[1722411150017,2.54460287,66456.0,66455.0,0.00186102]
[1722411150399,0.89509328,66451.0,66450.0,2e-08]
[1722411150607,1.43451771,66451.0,66450.0,2e-08]
[1722411150792,1.55751771,66451.0,66450.0,2e-08]
[1722411150991,2.15946371,66451.0,66450.0,2e-08]
[1722411151553,1.93231948,66451.0,66450.0,2e-08]
[1722411151760,2.6124865,66451.0,66450.0,2e-08]
[1722411151965,2.3115135,66451.0,66450.0,2e-08]
[1722411152220,2.6124865,66451.0,66450.0,2e-08]
[1722411152563,2.6264865,66451.0,66450.0,2e-08]
[1722411152762,2.63535612,66451.0,66450.0,2e-08]
[1722411153392,2.64935612,66451.0,66450.0,2e-08]
[1722411153965,2.64935612,66451.0,66444.0,0.0088731]
[1722411153966,1.79226128,66445.0,66444.0,0.0088731]
[1722411154272,2.6018474,66445.0,66444.0,0.0088731]
[1722411154890,2.6019766,66445.0,66444.0,0.0088731]
[1722411155170,2.72315901,66445.0,66444.0,0.0088731]
[1722411155320,2.40882128,66445.0,66444.0,0.0088731]
[1722411155521,2.80366898,66445.0,66444.0,0.0088731]
[1722411156272,2.5595156,66445.0,66444.0,0.0088731]
[1722411156444,2.80366898,66445.0,66444.0,0.0088731]
[1722411156843,1.354765,66432.0,66427.0,0.0612]
[1722411157100,2.05471479,66432.0,66427.0,0.0612]
[1722411157300,2.16037607,66432.0,66427.0,0.0612]
[1722411158062,1.93174911,66432.0,66427.0,0.0612]
[1722411158280,2.1749683,66432.0,66427.0,0.0612]
[1722411158814,2.1749683,66432.0,66426.0,0.0152031]
[1722411158815,2.4960273,66432.0,66426.0,0.0152031]
[1722411159022,2.5917273,66432.0,66426.0,0.0152031]
[1722411159204,0.00566128,66427.0,66426.0,0.0152031]
[1722411159375,2.26802411,66427.0,66426.0,0.0152031]
[1722411159620,2.49875883,66427.0,66426.0,0.0152031]
[1722411159984,2.19767683,66427.0,66426.0,0.0152031]
[1722411160209,2.49875883,66427.0,66426.0,0.0152031]
[1722411160368,2.12037683,66427.0,66426.0,0.0152031]
[1722411160580,2.40145883,66427.0,66426.0,0.0152031]
[1722411160945,2.10037683,66427.0,66426.0,0.0152031]
[1722411161074,1.94402123,66427.0,66426.0,0.0152031]
[1722411161271,1.95802123,66427.0,66426.0,0.0152031]
[1722411161537,1.63481026,66427.0,66426.0,0.0152031]
[1722411161688,1.62081026,66427.0,66426.0,0.0957031]
[1722411161890,1.67155413,66427.0,66426.0,0.0957031]
[1722411162713,1.65755413,66427.0,66426.0,0.0957031]
[1722411163122,1.69455413,66427.0,66426.0,0.0957031]
[1722411163329,1.60825413,66427.0,66426.0,0.0957031]
[1722411164374,1.62225413,66427.0,66426.0,0.0957031]
[1722411164559,1.59425413,66427.0,66426.0,0.0957031]
[1722411164736,1.60747844,66427.0,66426.0,0.0957031]
[1722411164956,1.62147844,66427.0,66426.0,0.0957031]
[1722411165184,1.90856044,66427.0,66426.0,0.0152031]
[1722411165385,1.89456044,66427.0,66426.0,0.0152031]
[1722411165524,1.60747844,66427.0,66426.0,0.0152031]
[1722411165716,1.59347844,66427.0,66426.0,0.0152031]
[1722411166118,1.62147844,66427.0,66426.0,0.0152031]
[1722411167308,1.92256044,66427.0,66426.0,0.0152031]
[1722411167515,1.60747844,66427.0,66426.0,0.0152031]
[1722411168080,1.62047115,66427.0,66426.0,0.0152031]
[1722411168237,1.92155315,66427.0,66426.0,0.0152031]
[1722411169025,1.62047115,66427.0,66426.0,0.0152031]
[1722411169603,1.31964528,66427.0,66426.0,0.1635031]
[1722411169805,1.11038096,66427.0,66426.0,0.16784182]
[1722411170004,0.55748128,66427.0,66426.0,0.16784182]
[1722411170281,0.6924303,66427.0,66426.0,0.16784182]
[1722411170490,1.15964528,66427.0,66426.0,0.1635031]
[1722411170695,1.44672728,66427.0,66426.0,0.1635031]
[1722411171132,1.21842004,66427.0,66426.0,0.1635031]
[1722411171341,1.60011198,66427.0,66426.0,0.1635031]
[1722411171572,1.57211198,66427.0,66426.0,0.1635031]
[1722411171791,1.62311198,66427.0,66426.0,0.1635031]
[1722411172198,1.48608821,66427.0,66426.0,0.1635031]
[1722411174130,1.63792057,66427.0,66426.0,0.1635031]
[1722411174533,1.62264304,66427.0,66426.0,0.1635031]
[1722411174785,1.60864304,66427.0,66426.0,0.1635031]
[1722411174989,1.62264304,66427.0,66426.0,0.1635031]
[1722411175323,1.77333736,66427.0,66426.0,0.1635031]
[1722411175528,1.78733736,66427.0,66426.0,0.1635031]
[1722411176138,1.78733736,66427.0,66426.0,0.1644271]
[1722411176354,1.63546507,66427.0,66426.0,0.1644271]
[1722411177850,1.63571784,66427.0,66426.0,0.1644271]
[1722411179331,1.62171784,66427.0,66426.0,0.1644271]
[1722411179531,1.92279984,66427.0,66426.0,0.1644271]
[1722411179759,1.93679984,66427.0,66426.0,0.1644271]
[1722411179961,1.92279984,66427.0,66426.0,0.1644271]
[1722411180371,1.93679984,66427.0,66426.0,0.1644271]
[1722411180701,1.92279984,66427.0,66426.0,0.1644271]
[1722411180928,1.90879984,66427.0,66426.0,0.1644271]
[1722411181136,1.92292891,66427.0,66426.0,0.1644271]
[1722411181338,1.92292891,66427.0,66426.0,0.0161271]
[1722411181339,2.02292891,66427.0,66426.0,0.0161271]
[1722411181671,2.04292891,66427.0,66426.0,0.0161271]
[1722411181981,2.02369516,66427.0,66426.0,0.0161271]
[1722411182555,2.00969516,66427.0,66426.0,0.0161271]
[1722411183398,2.23132182,66427.0,66426.0,0.0161271]
[1722411183602,2.26532182,66427.0,66426.0,0.0161271]
[1722411183812,2.24532182,66427.0,66426.0,0.0161271]
[1722411184016,2.23132182,66427.0,66426.0,0.0161271]
[1722411184430,1.79319636,66427.0,66426.0,0.0161271]
[1722411184635,2.03711569,66427.0,66426.0,0.0161271]
[1722411185187,2.14351569,66427.0,66426.0,0.0161271]
[1722411185428,2.12351569,66427.0,66426.0,0.0161271]
[1722411187613,1.89359636,66427.0,66426.0,0.0161271]
[1722411187831,2.12329494,66427.0,66426.0,0.0161271]
[1722411188392,1.88620062,66427.0,66426.0,0.0161271]